[Event "MCCT Chessable Masters-KO 2022"]
[Site "Online"]
[Date "2022.05.23"]
[Round "1.1"]
[White "Wei, Yi"]
[Black "Praggnanandhaa R"]
[Result "1-0"]
[ECO "A21"]
[WhiteElo "2727"]
[BlackElo "2642"]
[Annotator "TA"]
[PlyCount "123"]
[EventDate "2022.05.23"]
[EventType "k.o."]
[EventCountry "NET"]
[SourceTitle "playchess.com"]
[Source "ChessBase"]
[SourceQuality "1"]
[TimeControl "900+10"]

{[%evp 9,123,17,10,-25,-23,-51,-41,-42,-44,-74,-64,-58,-41,-48,-34,-56,-46,-91,-87,-102,-63,-86,-81,-80,-87,-72,-48,-116,-68,-83,-37,-35,-25,-46,0,0,0,0,0,0,0,0,0,0,25,23,23,23,21,12,14,8,8,8,9,9,9,0,30,33,35,33,42,16,72,8,9,9,9,15,35,35,65,65,72,72,72,72,73,60,74,0,73,73,74,66,73,73,74,74,185,185,185,185,709,642,600,529,501,433,645,600,29962,809,29961,29964,29965,29968,29969,29970,29966,29965,29986,29987,29988,29989]} 1. c4 {[%emt 0:00:00]} e5 {[%emt 0:00:00]} 2. Nc3 {[%emt 0:00:06]} Bb4 {[%emt 0:00:05]} 3. g3 {[%emt 0:00:08]} Bxc3 {[%emt 0:00:07]} 4. bxc3 {[%emt 0:00:03]} d6 {[%emt 0:00:08]} 5. Bg2 {[%emt 0:00:05]} Nc6 {[%emt 0:00:12]} 6. c5 {[%emt 0:01:02] [#] A21: English Opening: 1...e5 2 Nc3.} dxc5 $146 {[%emt 0:03:24]} ({Predecessor:} 6... d5 7. d4 Nge7 8. Nf3 e4 9. Nd2 O-O 10. O-O Be6 11. f3 exf3 12. Rxf3 Qd7 13. Qf1 b6 {½-½ (24) Varga,Z (2503)-Estrada Nieto,J (2371) Szentgotthard 2001}) 7. Bxc6+ {[%emt 0:00:55]} bxc6 {[%emt 0:00:03]} 8. Qa4 {[%emt 0:00:06] Black is slightly better.} Qd5 {[%emt 0:01:21]} 9. f3 {[%emt 0:02:45]} Nf6 {[%emt 0:01:00]} 10. c4 {[%emt 0:00:08]} Qd6 {[%emt 0:00:48]} (10... Qd4 {seems wilder.} 11. Qxc6+ Ke7 12. Qxc7+ Bd7) 11. d3 {[%emt 0:00:03] Prevents e4.} Be6 {[%emt 0:00:52]} 12. Qa5 {[%emt 0:02:34]} O-O $36 {[%emt 0:00:07][%cal Oe5e4][%mdl 2048] Black fights for an advantage.} 13. Be3 {[%emt 0:00:06]} Nd7 {[%emt 0:00:04]} 14. g4 {[%emt 0:00:03]} Rab8 {[%emt 0:01:55][%cal Oe5e4]} 15. Nh3 {[%emt 0:00:04][%cal Bg1h3,Bh3f2,Bf2e4][%mdl 32]} h5 $1 {[%emt 0:00:20]} 16. Nf2 {[%emt 0:00:04]} hxg4 {[%emt 0:00:02]} 17. fxg4 {[%emt 0:00:12]} Rb2 {[%emt 0:01:37]} 18. Qxa7 {[%emt 0:03:00]} ({White should try} 18. h3 $15) 18... Rfb8 {[%emt 0:01:14]} (18... e4 $1 $17 {[%cal Re4d3] aiming for ...exd3.} 19. Qa3 (19. Nxe4 $2 Qe5 $19) 19... Qe5) 19. Qa3 {[%emt 0:00:46]} e4 {[%emt 0:01:46]} (19... Qe7 $17 {[%cal Oe5e4] ...e4! is the strong threat.} 20. Bc1 R2b7) 20. Nxe4 $15 {[%emt 0:00:14]} Qe5 {[%emt 0:00:02]} 21. h3 {[%emt 0:02:34]} f5 {[%emt 0:00:53]} (21... Nf6 $15 {should be considered.} 22. Nxf6+ Qxf6) 22. gxf5 $11 {[%emt 0:00:34]} Bxf5 {[%emt 0:00:02]} 23. Qc3 {[%emt 0:00:31]} Bxe4 {[%emt 0:00:48]} 24. Qxe5 {[%emt 0:00:01]} Nxe5 {[%emt 0:00:01]} 25. dxe4 {[%emt 0:00:01]} Nxc4 {[%emt 0:00:02]} 26. Bxc5 {[%emt 0:00:05]} Rxa2 {[%emt 0:01:02]} 27. Rxa2 {[%emt 0:00:06]} Rb1+ {[%emt 0:00:02]} 28. Kf2 {[%emt 0:00:01] Ra8+ would kill now.} Rxh1 {[%emt 0:00:00][%mdl 4096] Endgame KRB-KRN} 29. Rc2 {[%emt 0:00:42]} Nd6 {[%emt 0:00:36]} 30. e5 {[%emt 0:00:01]} Ne4+ {[%emt 0:00:40]} 31. Kg2 {[%emt 0:00:01]} Rd1 {[%emt 0:00:03]} 32. Be3 {[%emt 0:00:40] Strongly threatening Kf3.} Rd5 $1 {[%emt 0:00:01]} 33. Bf4 {[%emt 0:00:41]} Nc5 {[%emt 0:00:26]} (33... Rc5 $5 {[%cal Rc5c2]} 34. Ra2 Nc3 $11) 34. Kf3 {[%emt 0:00:34] Black must now prevent e4.} Ne6 {[%emt 0:00:04] Hoping for ...Nd4+.} 35. Rxc6 {[%emt 0:00:01]} Kf7 {[%emt 0:00:13]} 36. e3 {[%emt 0:00:08]} Rd1 {[%emt 0:00:12]} (36... Rc5 $11 {remains equal.} 37. Ra6 Rc1) 37. Ke4 {[%emt 0:00:22]} ({Better is} 37. h4 $16) 37... Rh1 {[%emt 0:00:13]} 38. Kf5 {[%emt 0:00:48]} g6+ {[%emt 0:00:03]} 39. Kg4 {[%emt 0:00:01]} Rg1+ {[%emt 0:00:02]} 40. Kf3 {[%emt 0:00:04]} Rh1 {[%emt 0:00:12]} 41. Kg2 $1 {[%emt 0:00:14]} Re1 {[%emt 0:00:07]} 42. h4 {[%emt 0:00:09] Against g5} Ra1 {[%emt 0:00:06]} 43. Kf3 {[%emt 0:00:09]} Rf1+ {[%emt 0:00:12]} 44. Kg4 {[%emt 0:00:11]} Rg1+ {[%emt 0:00:16]} 45. Kf3 {[%emt 0:00:07]} Rf1+ $1 {[%emt 0:00:03]} 46. Ke4 {[%emt 0:00:01]} Rh1 {[%emt 0:00:24]} 47. Bg5 {[%emt 0:00:02]} Ra1 {[%emt 0:00:31]} 48. Bf6 {[%emt 0:00:15]} Rg1 {[%emt 0:00:14]} 49. Rc2 {[%emt 0:00:15]} g5 {[%emt 0:00:28]} (49... Ra1 $16 {might work better.}) 50. h5 $18 {[%emt 0:00:01]} Rh1 {[%emt 0:00:04] [#]} 51. Rd2 $1 {[%emt 0:00:48]} Rxh5 $2 {[%emt 0:00:16] [#]} (51... Nc5+ 52. Kd5 Rc1) 52. Rd7+ $1 {[%emt 0:00:02]} Kg6 {[%emt 0:00:03] Threatens to win with ...Nc5+.} 53. Kd5 {[%emt 0:00:07] Against Nc5} Nf8 {[%emt 0:00:08]} 54. Rg7+ {[%emt 0:00:12]} Kh6 {[%emt 0:00:09]} (54... Kf5 $142 55. Rf7 (55. Rxc7 Rh1 $11) (55. e4+ Kf4 $16) 55... Ng6 56. Bd8+ (56. Rxc7 Rh3 $16) 56... Kg4 57. Bxc7 Rh3) 55. Rxc7 {[%emt 0:00:07] White wants to mate with Bg7+.} Ng6 {[%emt 0:00:08]} 56. Bg7+ {[%emt 0:00:28]} Kh7 {[%emt 0:00:02]} 57. e6 {[%emt 0:00:01] White mates.} g4+ {[%emt 0:00:03]} 58. Ke4 {[%emt 0:00:04]} Rb5 {[%emt 0:00:18]} 59. Bf6+ {[%emt 0:00:38]} Kh6 {[%emt 0:00:02]} 60. Rc1 {[%emt 0:00:09]} Kh7 {[%emt 0:00:43]} 61. Rh1+ {[%emt 0:00:03]} Kg8 {[%emt 0:00:08]} 62. Rh6 {[%emt 0:00:02] Weighted Error Value: White=0.11 (very precise) /Black=0.27 (precise)} 1-0

[Event "MCCT Chessable Masters-KO 2022"]
[Site "Online"]
[Date "2022.05.23"]
[Round "1.1"]
[White "Anton Guijarro, David"]
[Black "Carlsen, Magnus"]
[Result "1/2-1/2"]
[ECO "B22"]
[WhiteElo "2691"]
[BlackElo "2864"]
[Annotator "TA"]
[PlyCount "94"]
[EventDate "2022.05.23"]
[EventType "k.o."]
[EventCountry "NET"]
[SourceTitle "playchess.com"]
[Source "ChessBase"]
[SourceQuality "1"]
[TimeControl "900+10"]

{[%evp 13,94,36,33,34,29,23,64,77,75,77,78,50,48,50,56,44,70,67,72,40,46,33,81,80,83,86,77,84,82,14,88,88,85,92,91,36,50,38,75,72,83,58,55,23,19,12,16,9,133,2,2,2,12,8,38,0,2,0,8,8,84,0,89,14,55,55,61,31,56,0,0,0,0,0,0,0,0,0,0,0,0,0,0]} 1. e4 {[%emt 0:00:00]} c5 {[%emt 0:00:00]} 2. Nf3 {[%emt 0:00:03]} e6 {[%emt 0:00:01]} 3. c3 {[%emt 0:00:12]} d5 {[%emt 0:00:02]} 4. exd5 {[%emt 0:00:04]} exd5 {[%emt 0:00:00]} 5. Bb5+ {[%emt 0:00:10]} Nc6 {[%emt 0:00:08]} 6. O-O {[%emt 0:00:05]} Nf6 {[%emt 0:01:28]} 7. d4 {[%emt 0:00:10]} Be7 {[%emt 0:00:26]} 8. dxc5 {[%emt 0:00:28] B22: Sicilian: 2 c3.} Bxc5 $1 {[%emt 0:00:02] 8...Bxc5 is better than 8...0-0.} 9. Bg5 {[%emt 0:00:07]} O-O {[%emt 0:00:55]} 10. Bxf6 {[%emt 0:00:54] White is slightly better.} Qxf6 {[%emt 0:00:01]} 11. Qxd5 {[%emt 0:00:01]} Bb6 {[%emt 0:00:01]} 12. Na3 {[%emt 0:02:15] [#]} Bf5 $146 {[%emt 0:00:51]} ({Predecessor:} 12... Rd8 13. Qg5 Qxg5 14. Nxg5 h6 15. Nf3 Be6 16. Be2 Bg4 17. Nc4 Bc5 18. a4 a6 {1-0 (54) Okhotnik,V (2347)-Sidali,E (1953) Ballerup 2019}) 13. Bxc6 {[%emt 0:01:05]} bxc6 {[%emt 0:00:13]} 14. Qe5 {[%emt 0:00:34]} Qe6 {[%emt 0:03:18]} 15. Rfe1 {[%emt 0:01:02]} Rad8 {[%emt 0:00:12]} 16. Nc4 {[%emt 0:01:21]} Qxc4 {[%emt 0:00:24]} 17. Qxf5 {[%emt 0:00:03]} Rfe8 {[%emt 0:00:11] Against Re7} (17... Rde8 $14) 18. g3 $16 {[%emt 0:04:17]} Re2 {[%emt 0:07:01]} 19. Rxe2 {[%emt 0:01:57]} Qxe2 {[%emt 0:00:00]} 20. Ng5 {[%emt 0:00:51][%csl LRf7,LRh7]} h6 {[%emt 0:00:02]} 21. Qxf7+ {[%emt 0:00:28]} Kh8 {[%emt 0:00:03]} 22. Ne6 {[%emt 0:00:46][%csl Ge6][%cal Rf7g7]} Bxf2+ {[%emt 0:00:03]} 23. Qxf2 {[%emt 0:00:04]} Qxe6 {[%emt 0:00:01][%mdl 4096] Endgame [#] KQR-KQR} 24. b3 {[%emt 0:00:21]} ({Much weaker is} 24. Qxa7 $6 Rd2 25. Qb8+ Kh7 $11) (24. a3 $1 $16) 24... Qe5 $14 {[%emt 0:00:02]} 25. Rc1 $1 {[%emt 0:00:12]} a5 {[%emt 0:00:07]} 26. c4 {[%emt 0:00:12]} a4 {[%emt 0:00:12]} 27. bxa4 {[%emt 0:00:15]} Qa5 {[%emt 0:00:35]} 28. Rc2 {[%emt 0:01:00]} Qxa4 {[%emt 0:00:03]} 29. Kg2 {[%emt 0:00:02]} c5 {[%emt 0:00:22]} 30. h4 {[%emt 0:00:02]} Rd4 {[%emt 0:01:47]} (30... Qc6+ $11 {remains equal.} 31. Qf3 Qa4) 31. Qe2 {[%emt 0:00:20]} (31. Qf8+ $16 Kh7 32. Qf5+ Kh8 33. Qc8+ Kh7 34. Re2 (34. Qf5+ Kh8 $16)) 31... Kh7 $11 {[%emt 0:00:22]} 32. Kh2 {[%emt 0:00:23]} Qd7 {[%emt 0:00:17]} 33. Qf3 {[%emt 0:00:11][%cal Oa2a4]} Kg8 {[%emt 0:01:05]} 34. Qe3 {[%emt 0:00:32][%cal Oa2a4]} Kh7 {[%emt 0:00:07]} 35. Qe5 {[%emt 0:00:09]} Qc6 {[%emt 0:00:10]} 36. Qf5+ {[%emt 0:00:07]} Kh8 {[%emt 0:00:08] [#]} (36... Qg6 $11 37. Qxg6+ Kxg6) 37. Rb2 {[%emt 0:00:12]} (37. Re2 $1 $16) 37... Qa8 {[%emt 0:00:19]} (37... Qd6 $11) 38. Qxc5 {[%emt 0:00:12]} ({Better is} 38. Qb1 $16 {Rb8+ is the strong threat.} Rd8 39. Qc2) 38... Rd1 {[%emt 0:00:06][%csl Ga8][%cal Rd1h1]} 39. Rg2 {[%emt 0:00:04]} Qe4 {[%emt 0:00:11] Against Qe5} 40. Qf8+ {[%emt 0:00:18]} Kh7 {[%emt 0:00:02]} 41. c5 {[%emt 0:00:10]} ({White should play} 41. Qf2 $14) 41... Qb1 {[%emt 0:00:06][%csl Gb1][%cal Rd1h1] The position is equal.} (41... Qe1 $5 42. Qf5+ g6 43. Qf7+ Kh8 $11) 42. Rf2 {[%emt 0:00:14]} Rh1+ {[%emt 0:00:12]} 43. Kg2 {[%emt 0:00:01] Hoping for Qf5+.} Qg1+ {[%emt 0:00:12]} 44. Kf3 {[%emt 0:00:01] Black must now prevent Qf5+.} Qd1+ {[%emt 0:00:00]} 45. Kg2 {[%emt 0:00:07]} Qg1+ {[%emt 0:00:08]} 46. Kf3 {[%emt 0:00:01] And now Qf5+ would win.} Qd1+ {[%emt 0:00:00]} 47. Kg2 {[%emt 0:00:13]} Qg1+ {[%emt 0:00:02] Weighted Error Value: White=0.21 (precise) /Black=0.21 (precise)} 1/2-1/2

[Event "MCCT Chessable Masters-KO 2022"]
[Site "Online"]
[Date "2022.05.23"]
[Round "1.1"]
[White "Tari, Aryan"]
[Black "Giri, Anish"]
[Result "0-1"]
[ECO "B51"]
[WhiteElo "2654"]
[BlackElo "2761"]
[Annotator "TA"]
[PlyCount "80"]
[EventDate "2022.05.23"]
[EventType "k.o."]
[EventCountry "NET"]
[SourceTitle "playchess.com"]
[Source "ChessBase"]
[SourceQuality "1"]
[TimeControl "900+10"]

{[%evp 9,80,0,8,0,41,29,35,27,29,22,35,33,35,11,24,0,0,0,0,0,4,0,33,23,25,26,27,20,17,14,13,0,13,0,13,0,0,-21,0,-17,-13,-89,-92,-91,-81,-83,-94,-89,-86,-84,-86,-408,-418,-418,-418,-411,-411,-622,-622,-777,-777,-777,-777,-794,-783,-817,-787,-876,-876,-910,-832,-29984,-5410]} 1. e4 {[%emt 0:00:00]} c5 {[%emt 0:00:00]} 2. Nf3 {[%emt 0:00:02]} d6 {[%emt 0:00:01]} 3. Bb5+ {[%emt 0:00:01]} Nd7 {[%emt 0:00:01]} 4. a4 {[%emt 0:00:03]} Ngf6 {[%emt 0:00:12]} 5. Nc3 {[%emt 0:00:03]} a6 {[%emt 0:00:12]} 6. Be2 {[%emt 0:00:04] B51: Sicilian: Moscow Variation (3 Bb5+) without 3...Bd7.} g6 {[%emt 0:00:02]} 7. a5 {[%emt 0:00:16]} Bg7 {[%emt 0:00:06]} 8. O-O {[%emt 0:00:01] White is slightly better.} O-O {[%emt 0:01:35]} 9. d3 {[%emt 0:00:02]} b5 {[%emt 0:00:07]} 10. axb6 $1 {[%emt 0:00:00]} Nxb6 {[%emt 0:01:27]} 11. h3 {[%emt 0:00:17]} a5 {[%emt 0:00:05] [#]} 12. e5 $146 {[%emt 0:02:03]} ({Predecessor:} 12. Qd2 h6 13. Qe1 e5 14. Bd1 Nh7 15. Na4 Nxa4 16. Rxa4 Bd7 17. Ra3 f5 18. exf5 gxf5 {0-1 (73) Elgersma,O (2303)-Roebers,E (2369) Almelo 2022}) 12... Nfd5 {[%emt 0:00:43]} 13. Nxd5 {[%emt 0:00:16]} Nxd5 {[%emt 0:00:02]} 14. exd6 {[%emt 0:00:05]} exd6 {[%emt 0:00:10]} 15. c3 {[%emt 0:00:08]} Qb6 {[%emt 0:00:42]} 16. Nd2 {[%emt 0:00:40]} Be6 {[%emt 0:01:07]} 17. Nc4 {[%emt 0:00:47]} Qc7 {[%emt 0:00:02]} 18. Bf3 {[%emt 0:00:19]} Ra6 {[%emt 0:00:46]} 19. Bd2 {[%emt 0:00:55]} Rb8 {[%emt 0:02:10]} 20. Re1 {[%emt 0:02:53]} Ne7 {[%emt 0:00:02]} 21. Qc1 {[%emt 0:00:01]} Nc6 {[%emt 0:00:42]} 22. Bf4 {[%emt 0:04:04]} Ne5 {[%emt 0:00:04]} 23. Nxe5 {[%emt 0:00:44]} dxe5 {[%emt 0:00:05]} 24. Bh2 {[%emt 0:00:40]} a4 {[%emt 0:00:40]} 25. d4 {[%emt 0:02:02]} (25. Bd1 $11) 25... cxd4 $17 {[%emt 0:00:11]} 26. cxd4 {[%emt 0:00:00]} Qxc1 {[%emt 0:00:47] Black is more active.} 27. Raxc1 {[%emt 0:00:00]} Rxb2 {[%emt 0:01:02]} 28. d5 {[%emt 0:00:21]} Bd7 {[%emt 0:00:29] Threatens to win with ...a3.} 29. Rc7 {[%emt 0:00:06]} Rd6 {[%emt 0:00:08]} 30. Bxe5 $2 {[%emt 0:00:57][%mdl 8192] This costs White the game.} (30. Ra7 $17 {is more resistant.} f6 31. Bg3) 30... Bxe5 $19 {[%emt 0:00:11]} 31. Rxe5 {[%emt 0:00:00]} a3 {[%emt 0:00:42][%cal Ba4a3,Ba3a2][%mdl 32]} 32. Ra7 {[%emt 0:00:04]} a2 {[%emt 0:00:03]} 33. Kh2 {[%emt 0:00:20] [#]} (33. Re1 $142 Rb1 34. Rd1 Rxd5 35. Rxa2 Rdxd1+ 36. Bxd1) 33... Bb5 $1 {[%emt 0:00:59] Hoping for ...Ba6.} 34. Re3 {[%emt 0:01:37]} Ra6 {[%emt 0:00:32]} 35. Rxa6 {[%emt 0:00:31]} Bxa6 {[%emt 0:00:00] KRB-KRB} 36. Ra3 {[%emt 0:00:00]} Bc4 {[%emt 0:00:01]} 37. d6 {[%emt 0:00:34]} Rd2 {[%emt 0:00:02]} 38. Ra8+ {[%emt 0:00:24]} Kg7 {[%emt 0:00:02]} 39. Kg3 {[%emt 0:00:04]} Rxd6 {[%emt 0:00:06]} 40. Kf4 {[%emt 0:00:03]} Ra6 {[%emt 0:00:03] Weighted Error Value: White=0.62/Black=0.05 (flawless)} (40... Ba6 $142 41. Kg3 a1=Q 42. Kh2 Qe5+ 43. Kh1 {[#]} Rd2 $1 44. Rxa6 Rxf2 45. Ra1 Qxa1+ 46. Kh2 Qe5+ 47. Kg1 Qg3 48. h4 Rxf3 49. h5 gxh5 50. Kh1 Rf1#) 0-1

[Event "MCCT Chessable Masters-KO 2022"]
[Site "Online"]
[Date "2022.05.23"]
[Round "2.1"]
[White "Carlsen, Magnus"]
[Black "Ding, Liren"]
[Result "1/2-1/2"]
[ECO "D02"]
[WhiteElo "2864"]
[BlackElo "2806"]
[Annotator "TA"]
[PlyCount "82"]
[EventDate "2022.05.23"]
[EventType "k.o."]
[EventCountry "NET"]
[SourceTitle "playchess.com"]
[Source "ChessBase"]
[SourceQuality "1"]
[TimeControl "900+10"]

{[%evp 14,82,0,0,0,-5,-5,-2,-15,-12,-7,-14,-13,-18,23,23,23,22,22,22,28,25,72,11,21,24,29,16,28,18,28,8,31,0,43,0,-1,-12,-8,-16,-16,-16,-16,-16,-14,-14,-16,-16,-16,-36,-36,-38,-28,-28,-28,-36,-8,-8,-8,-8,0,0,0,0,0,0,0,0,0,0,0]} 1. Nf3 {[%emt 0:00:00]} d5 {[%emt 0:00:00]} 2. g3 {[%emt 0:00:02]} Nf6 {[%emt 0:00:22]} 3. Bg2 {[%emt 0:00:02]} c5 {[%emt 0:00:01]} 4. O-O {[%emt 0:00:02]} e6 {[%emt 0:00:01][%cal Be7e6,Be6e5][%mdl 32]} 5. d4 {[%emt 0:00:17]} cxd4 {[%emt 0:00:03]} 6. Nxd4 {[%emt 0:00:00]} e5 {[%emt 0:00:01]} 7. Nb3 {[%emt 0:00:02]} Be6 {[%emt 0:00:01]} 8. Nc3 {[%emt 0:00:11]} Be7 {[%emt 0:00:51] D02: 1 d4 d5 2 Nf3 sidelines, including 2...Nf6 3 g3 and 2...Nf6 3 Bf4.} 9. f4 {[%emt 0:00:04]} exf4 {[%emt 0:02:41]} 10. gxf4 $1 {[%emt 0:00:02] 10.gxf4 is better than 10.Bxf4.} g6 {[%emt 0:00:01]} 11. Nd4 {[%emt 0:00:03]} Nc6 {[%emt 0:00:02]} 12. Nxe6 {[%emt 0:00:03]} fxe6 {[%emt 0:00:00]} 13. Kh1 {[%emt 0:00:13] [#]} Kf7 $146 {[%emt 0:01:23]} ({Predecessor:} 13... O-O 14. a3 Bc5 15. Qd3 Rc8 16. Na4 Bd4 17. Bd2 a6 18. Rad1 b5 19. Nc3 Qb6 {½-½ (28) Blanco Gramajo,C (2538)-Zuev,D (2480) ICCF email 2015}) 14. e4 {[%emt 0:02:39]} dxe4 {[%emt 0:01:49]} 15. Nxe4 {[%emt 0:00:01]} Nxe4 {[%emt 0:00:02]} 16. Bxe4 {[%emt 0:00:02][%cal Of4f5]} Bf6 {[%emt 0:01:47]} 17. c3 {[%emt 0:00:09][%cal Of4f5]} Qc7 {[%emt 0:01:31] [#]} (17... Qxd1 $11 18. Rxd1 Rhd8) 18. Qf3 {[%emt 0:00:23]} ({White should try} 18. f5 $1 $16 {[%cal Rf5e6] Hoping for fxe6+.} gxf5 19. Bf4) 18... Ne7 {[%emt 0:00:37]} 19. Bxb7 {[%emt 0:00:36]} Rab8 {[%emt 0:00:01]} 20. Be4 {[%emt 0:00:02]} Nf5 {[%emt 0:00:15]} 21. Rb1 {[%emt 0:00:02]} Rhd8 {[%emt 0:00:21]} 22. Be3 {[%emt 0:00:24]} a5 {[%emt 0:01:22]} 23. Bg1 {[%emt 0:02:00] This bishop pair is nice.} Qc4 {[%emt 0:00:09]} 24. b3 {[%emt 0:02:26]} (24. Ba7 $5 {[%cal Ra7b8]} Rbc8 25. Bb7 $14) 24... Qxc3 {[%emt 0:00:09]} 25. Rbc1 {[%emt 0:00:10]} Qxf3+ {[%emt 0:00:07]} 26. Bxf3 {[%emt 0:00:26]} Bd4 {[%emt 0:00:10]} 27. Rc7+ {[%emt 0:00:02]} Kf6 {[%emt 0:00:00]} 28. Rxh7 {[%emt 0:00:10]} Bxg1 {[%emt 0:00:46]} 29. Kxg1 {[%emt 0:00:06]} ({Much worse is} 29. Rxg1 Rb4 $17) 29... Rd2 {[%emt 0:00:19]} 30. Rf2 {[%emt 0:00:06]} Rbd8 {[%emt 0:00:01]} 31. h4 {[%emt 0:01:21]} Rxf2 {[%emt 0:00:08]} 32. Kxf2 $15 {[%emt 0:00:03][%mdl 4096] Endgame KRB-KRN} Rd2+ {[%emt 0:00:00]} 33. Ke1 {[%emt 0:00:01]} Rxa2 {[%emt 0:00:02]} 34. h5 $1 {[%emt 0:00:01]} Nd4 {[%emt 0:00:21]} 35. Bd1 {[%emt 0:00:03] The position is equal.} gxh5 {[%emt 0:00:09]} 36. Rxh5 {[%emt 0:00:04]} Ke7 {[%emt 0:00:23]} 37. Re5 {[%emt 0:00:36]} Kd6 {[%emt 0:00:01]} 38. Re4 {[%emt 0:00:02]} Kc5 {[%emt 0:00:07]} 39. Re5+ {[%emt 0:00:07]} Kd6 {[%emt 0:00:03]} 40. Re4 {[%emt 0:00:01]} Kc5 {[%emt 0:00:01]} 41. Re5+ {[%emt 0:00:01]} Kd6 {[%emt 0:00:01] Weighted Error Value: White=0.07 (flawless) /Black=0.08 (flawless)} 1/2-1/2

[Event "MCCT Chessable Masters-KO 2022"]
[Site "Online"]
[Date "2022.05.23"]
[Round "2.1"]
[White "Ding, Liren"]
[Black "Carlsen, Magnus"]
[Result "1-0"]
[ECO "D11"]
[WhiteElo "2806"]
[BlackElo "2864"]
[Annotator "TA"]
[PlyCount "111"]
[EventDate "2022.05.23"]
[EventType "k.o."]
[EventCountry "NET"]
[SourceTitle "playchess.com"]
[Source "ChessBase"]
[SourceQuality "1"]
[TimeControl "900+10"]

{[%evp 15,111,26,36,30,33,18,25,33,21,21,29,31,49,27,81,87,86,67,127,126,123,118,129,129,130,125,135,137,133,133,152,137,147,139,137,104,150,125,122,99,120,111,151,145,152,116,136,108,101,89,117,91,117,114,114,114,116,116,126,81,84,100,158,148,157,148,174,187,315,315,315,313,534,452,508,492,440,358,409,398,393,353,1545,1464,1477,1477,1502,1406,2008,2008,29966,29966,12837,11966,5206,3820,29978,4802]} 1. d4 {[%emt 0:00:00]} d5 {[%emt 0:00:00]} 2. c4 {[%emt 0:00:02]} c6 {[%emt 0:00:02]} 3. Nf3 {[%emt 0:00:02]} Nf6 {[%emt 0:00:01]} 4. e3 {[%emt 0:00:11]} Bg4 {[%emt 0:00:38]} 5. h3 {[%emt 0:00:01]} Bxf3 {[%emt 0:00:01]} 6. Qxf3 {[%emt 0:00:01]} e6 {[%emt 0:00:00]} 7. Nc3 {[%emt 0:00:05]} Nbd7 {[%emt 0:00:08]} 8. Bd3 {[%emt 0:00:01]} Bb4 {[%emt 0:00:02]} 9. O-O {[%emt 0:00:12] D11: Slav Defence: 3 Nf3 sidelines and 3...Nf6 4 e3 Bg4.} O-O {[%emt 0:00:02]} 10. Rd1 {[%emt 0:00:14]} Re8 {[%emt 0:00:28]} 11. Qe2 {[%emt 0:00:12] White has an edge.} Qe7 {[%emt 0:01:44]} 12. Bd2 {[%emt 0:00:28]} a6 {[%emt 0:01:36] [#]} 13. Be1 $146 {[%emt 0:00:07]} ({Predecessor:} 13. e4 dxe4 14. Nxe4 Nxe4 15. Bxe4 Bxd2 16. Rxd2 Rad8 17. Rad1 Nf6 18. Bf3 Rd7 19. d5 exd5 20. Qxe7 Rexe7 21. cxd5 cxd5 22. Bxd5 {½-½ (22) Paunovic,D (2532)-Matamoros Franco,C (2515) Benidorm 2008}) 13... Rad8 {[%emt 0:00:44]} 14. Rac1 {[%emt 0:00:12][%cal Ba1c1,Bc1c3,Bc3b3,Bb3b6][%mdl 32]} (14. a3 $5 {[%cal Ra3b4]} dxc4 15. Bxc4 $14) 14... Bd6 {[%emt 0:00:18]} (14... dxc4 $11 {remains equal.} 15. Bxc4 Nb6) 15. c5 $16 {[%emt 0:01:43]} Bc7 {[%emt 0:00:26]} 16. f4 {[%emt 0:00:00] Prevents e5.} Ba5 {[%emt 0:00:54] [#]} ({Better is} 16... h6 $14) 17. Nxd5 $1 {[%emt 0:00:41][%mdl 512]} exd5 {[%emt 0:00:03]} 18. Bxa5 {[%emt 0:00:00]} Rc8 {[%emt 0:00:01]} 19. Rc3 {[%emt 0:00:40]} Nf8 {[%emt 0:02:25]} 20. Rb3 {[%emt 0:00:09]} Ne6 {[%emt 0:00:24]} 21. Qf3 {[%emt 0:00:55]} Qd7 {[%emt 0:00:28]} 22. Be1 {[%emt 0:01:21] 0x0.00226ac31207dp-1022s more active pieces.} Nd8 {[%emt 0:00:04]} 23. Rb6 {[%emt 0:03:33]} Ne4 {[%emt 0:00:04]} 24. Bc2 {[%emt 0:00:00]} f5 {[%emt 0:00:16]} 25. Rd3 {[%emt 0:00:01]} Nf7 {[%emt 0:01:47]} (25... Qf7 $142) 26. Rdb3 {[%emt 0:00:38]} Rc7 {[%emt 0:00:02]} 27. Kf1 {[%emt 0:00:15][%cal Bg1f1,Bf1e2,Be2d1,Bd1c1,Bc1b1,Bb1a2][%mdl 32]} Qc8 {[%emt 0:00:06]} 28. Ke2 {[%emt 0:00:11]} Nh8 {[%emt 0:00:39]} 29. Kd1 {[%emt 0:00:03]} Ng6 {[%emt 0:00:01]} 30. Kc1 {[%emt 0:00:08]} Nf8 {[%emt 0:00:02]} 31. Ba5 {[%emt 0:00:57]} Rf7 {[%emt 0:00:30]} 32. Kb1 {[%emt 0:00:55]} h6 {[%emt 0:00:37]} 33. a3 {[%emt 0:00:25]} Nh7 {[%emt 0:00:59]} 34. Ka2 {[%emt 0:00:03]} Nhf6 {[%emt 0:00:02]} 35. Be1 {[%emt 0:00:12]} g5 {[%emt 0:00:09]} 36. Bd1 {[%emt 0:02:04]} g4 {[%emt 0:00:38]} 37. hxg4 {[%emt 0:00:40]} fxg4 {[%emt 0:00:59]} 38. Qf1 {[%emt 0:00:01]} h5 {[%emt 0:00:14] [#]} (38... Ree7 $142) 39. Qh1 $1 {[%emt 0:00:23]} Kg7 {[%emt 0:01:07]} 40. Bh4 {[%emt 0:00:03]} Ng8 {[%emt 0:00:26]} 41. Bc2 {[%emt 0:00:43]} Nd2 {[%emt 0:00:39] [#]} (41... Nh6 $142 42. Be1 Kg6 43. Bxe4+ (43. Qh4 Qd8 $16) 43... Rxe4) 42. Bg5 $1 $18 {[%emt 0:00:43][%cal Oh1h5] This bishop pair is nice.} Nxb3 {[%emt 0:00:01]} 43. Rxb3 {[%emt 0:00:12]} ({Worse is} 43. Bxb3 Qf5 $11) ({And not} 43. Qxh5 Nd2 44. Bg6 Ree7 $11) 43... Nf6 {[%emt 0:02:06]} (43... Ne7 44. f5 (44. Qxh5 Rh8 $17) 44... Nxf5) 44. Bxf6+ {[%emt 0:00:01][%mdl 64] Remove Defender} Rxf6 {[%emt 0:00:00]} 45. Qxh5 {[%emt 0:00:01]} Rh8 {[%emt 0:00:04] Prevents Qh7+.} 46. Qe5 {[%emt 0:00:04]} Kf7 {[%emt 0:00:06]} 47. e4 {[%emt 0:00:04] Really sharp!} dxe4 {[%emt 0:00:12]} 48. Bxe4 {[%emt 0:01:01]} Re8 $2 {[%emt 0:00:09]} (48... Qd7 49. d5 Rf8) 49. Qh5+ {[%emt 0:00:06]} Ke7 {[%emt 0:00:02]} 50. d5 {[%emt 0:00:08][%cal Bd4d5,Bd5c6][%mdl 32]} Kd8 {[%emt 0:00:18]} 51. Qg5 {[%emt 0:00:07]} Ref8 {[%emt 0:00:00]} 52. Rd3 {[%emt 0:00:39] White wants to mate with dxc6+.} Qc7 {[%emt 0:00:47]} 53. dxc6+ {[%emt 0:00:23]} Kc8 {[%emt 0:00:00]} 54. Qxg4+ {[%emt 0:00:01]} Kb8 {[%emt 0:00:03]} 55. Rd7 {[%emt 0:00:00]} Rxf4 {[%emt 0:00:08]} 56. Qg7 {[%emt 0:00:12] Weighted Error Value: White=0.10 (very precise) /Black=0.51} (56. Qg3 $142 Qxd7 57. cxd7 Kc7 58. Qd3 R4f7 59. Qd6+ Kd8 60. Bxb7 Rf6 61. Qd4) 1-0